fUSD/lending_fUSD_20260531
["ID","MTS","AMOUNT","RATE_DAILY","PERIOD"]
[423485742,1780156878000,518.21,0.00027671,120]
[423485744,1780156906000,500.0,0.00027671,120]
[423485748,1780157179000,500.0,0.00027671,120]
[423485754,1780157363000,1000.0,0.0002767,120]
[423485766,1780157431000,-603.79075795,0.00012357,2]
[423485765,1780157431000,-456.9218216,0.00012239,2]
[423485764,1780157431000,-642.03266483,0.00012239,2]
[423485763,1780157431000,-901.04551357,0.00012239,2]
[423485761,1780157431000,-215.58360558,0.00012087,2]
[423485762,1780157431000,-656.48,0.00012132,2]
[423485760,1780157431000,-970.68155136,0.00012087,2]
[423485758,1780157431000,-358.55794881,0.00011987,2]
[423485759,1780157431000,-29.31844864,0.00012087,2]
[423485757,1780157431000,-1384.85244283,0.00011987,2]
[423485756,1780157431000,-162.55,0.00011902,2]
[423485767,1780157432000,-1516.77830277,0.00012357,2]
[423485768,1780157432000,-298.95167678,0.00012357,2]
[423485769,1780157432000,-351.7192625,0.00012357,2]
[423485772,1780157432000,-1200.0,0.00012408,2]
[423485771,1780157432000,-150.0,0.00012362,2]
[423485773,1780157432000,-190.72823364,0.00012409,2]
[423485770,1780157432000,-335.47,0.00012357,2]
[423485782,1780157433000,-500.0,0.00012736,2]
[423485793,1780157433000,-551.81763463,0.00012899,2]
[423485790,1780157433000,-2702.35,0.00012737,2]
[423485791,1780157433000,-1700.0,0.000128,4]
[423485788,1780157433000,-500.0,0.00012736,2]
[423485789,1780157433000,-500.0,0.00012736,2]
[423485787,1780157433000,-500.0,0.00012736,2]
[423485786,1780157433000,-150.0,0.00012736,2]
[423485785,1780157433000,-500.0,0.00012736,2]
[423485774,1780157433000,-1419.1,0.00012409,2]
[423485783,1780157433000,-500.0,0.00012736,2]
[423485781,1780157433000,-500.0,0.00012736,2]
[423485780,1780157433000,-236.47694369,0.00012736,2]
[423485779,1780157433000,-162.76,0.00012667,2]
[423485777,1780157433000,-150.58611744,0.00012606,2]
[423485778,1780157433000,-300.0,0.00012666,2]
[423485775,1780157433000,-1066.28,0.0001249,2]
[423485776,1780157433000,-15.06388256,0.00012606,2]
[423485792,1780157433000,-3718.75,0.00012858,2]
[423485784,1780157433000,-500.0,0.00012736,2]
[423485795,1780157433000,-300.39,0.00013022,2]
[423485802,1780157433000,-3634.043,0.00013229,2]
[423485794,1780157433000,-3400.0,0.000129,4]
[423485816,1780157433000,-1811.07692897,0.00013499,2]
[423485817,1780157433000,-416.07694567,0.00013499,2]
[423485813,1780157433000,-16304.34935803,0.00013498,2]
[423485815,1780157433000,-400.0,0.00013499,2]
[423485814,1780157433000,-330.946447,0.00013499,2]
[423485812,1780157433000,-5019.86439087,0.00013498,2]
[423485810,1780157433000,-500.0,0.00013498,2]
[423485811,1780157433000,-226.10319117,0.00013498,2]
[423485809,1780157433000,-328.62257192,0.00013498,2]
[423485796,1780157433000,-1226.37653592,0.00013025,2]
[423485808,1780157433000,-178.34868306,0.00013498,2]
[423485806,1780157433000,-2500.0,0.00013399,2]
[423485804,1780157433000,-4726.56318739,0.00013399,2]
[423485805,1780157433000,-5000.0,0.00013399,2]
[423485803,1780157433000,-304.727,0.00013229,2]
[423485801,1780157433000,-2899.32,0.00013205,2]
[423485800,1780157433000,-162.55,0.00013154,2]
[423485798,1780157433000,-200.0,0.00013083,2]
[423485799,1780157433000,-161.77,0.0001315,2]
[423485797,1780157433000,-320.22346408,0.00013025,2]
[423485807,1780157433000,-468.28358121,0.00013493,2]
[423485826,1780157437000,-500.0,0.00012736,2]
[423485824,1780157437000,-500.0,0.00012736,2]
[423485825,1780157437000,-209.12966642,0.00011987,2]
[423485827,1780157437000,-301.89754856,0.00012736,2]
[423485830,1780157437000,-500.0,0.00012736,2]
[423485829,1780157437000,-500.0,0.00012736,2]
[423485832,1780157437000,-148.10072905,0.00012736,2]
[423485831,1780157437000,-500.0,0.00012736,2]
[423485833,1780157437000,-351.89927095,0.00012736,2]
[423485828,1780157437000,-198.10245144,0.00012736,2]
[423485878,1780157438000,-509.66155533,0.00013698,2]
[423485877,1780157438000,-500.0,0.00013698,2]
[423485873,1780157438000,-500.0,0.00013698,2]
[423485875,1780157438000,-500.0,0.00013698,2]
[423485870,1780157438000,-518.21,0.00013698,2]
[423485868,1780157438000,-518.21,0.00013698,2]
[423485871,1780157438000,-518.21,0.00013698,2]
[423485865,1780157438000,-518.21,0.00013698,2]
[423485867,1780157438000,-518.21,0.00013698,2]
[423485866,1780157438000,-518.21,0.00013698,2]
[423485863,1780157438000,-420.45070713,0.00013698,2]
[423485872,1780157438000,-518.21,0.00013698,2]
[423485880,1780157438000,-500.0,0.00013698,2]
[423485888,1780157438000,-500.0,0.00013698,2]
[423485884,1780157438000,-387.24040857,0.00013698,2]
[423485887,1780157438000,-500.0,0.00013698,2]
[423485886,1780157438000,-500.0,0.00013698,2]
[423485890,1780157438000,-500.0,0.00013698,2]
[423485889,1780157438000,-500.0,0.00013698,2]
[423485894,1780157438000,-500.0,0.00013698,2]
[423485893,1780157438000,-500.0,0.00013698,2]
[423485892,1780157438000,-500.0,0.00013698,2]
[423485891,1780157438000,-500.0,0.00013698,2]
[423485896,1780157438000,-500.0,0.00013698,2]
[423485895,1780157438000,-500.0,0.00013698,2]
[423485897,1780157438000,-500.0,0.00013698,2]
[423485882,1780157438000,-500.0,0.00013698,2]
[423485864,1780157438000,-161.53446073,0.00013698,2]
[423485862,1780157438000,-500.0,0.00013698,2]
[423485861,1780157438000,-500.0,0.00013698,2]
[423485898,1780157438000,-500.0,0.00013698,2]
[423485834,1780157438000,-500.0,0.00012736,2]
[423485838,1780157438000,-500.0,0.00012736,2]
[423485835,1780157438000,-335.85156902,0.00012736,2]
[423485837,1780157438000,-500.0,0.00012736,2]
[423485836,1780157438000,-164.14843098,0.00012736,2]
[423485839,1780157438000,-500.0,0.00012736,2]
[423485841,1780157438000,-500.0,0.00012736,2]
[423485840,1780157438000,-500.0,0.00012736,2]
[423485843,1780157438000,-500.0,0.00012736,2]
[423485844,1780157438000,-2500.0,0.00013399,2]
[423485842,1780157438000,-500.0,0.00012736,2]
[423485845,1780157438000,-1327242.69202536,0.00013499,2]
[423485846,1780157438000,-192.17336401,0.00013598,2]
[423485850,1780157438000,-500.0,0.00013698,2]
[423485847,1780157438000,-238228.1616,0.00013599,2]
[423485849,1780157438000,-2212.70631851,0.00013698,2]
[423485848,1780157438000,-720.0,0.00013649,2]
[423485851,1780157438000,-500.0,0.00013698,2]
[423485853,1780157438000,-500.0,0.00013698,2]
[423485855,1780157438000,-503.21523285,0.00013698,2]
[423485854,1780157438000,-500.0,0.00013698,2]
[423485852,1780157438000,-500.0,0.00013698,2]
[423485856,1780157438000,-500.0,0.00013698,2]
[423485857,1780157438000,-500.0,0.00013698,2]
[423485858,1780157438000,-172.47512054,0.00013698,2]
[423485859,1780157438000,-500.0,0.00013698,2]
[423485860,1780157438000,-820.17,0.00013698,2]
[423485899,1780157438000,-500.0,0.00013698,2]
[423485912,1780157438000,-500.0,0.00013698,2]
[423485900,1780157438000,-500.0,0.00013698,2]
[423485935,1780157438000,-500.0,0.00013698,2]
[423485934,1780157438000,-500.0,0.00013698,2]
[423485937,1780157438000,-500.0,0.00013698,2]
[423485936,1780157438000,-500.0,0.00013698,2]
[423485938,1780157438000,-3213.79,0.00013698,2]
[423485940,1780157438000,-3213.79,0.00013698,2]
[423485939,1780157438000,-3213.79,0.00013698,2]
[423485941,1780157438000,-3213.79,0.00013698,2]
[423485942,1780157438000,-3213.79,0.00013698,2]
[423485943,1780157438000,-3213.79,0.00013698,2]
[423485944,1780157438000,-3213.79,0.00013698,2]
[423485946,1780157438000,-500.0,0.00013698,2]
[423485945,1780157438000,-500.0,0.00013698,2]
[423485949,1780157438000,-500.0,0.00013698,2]
[423485948,1780157438000,-500.0,0.00013698,2]
[423485947,1780157438000,-500.0,0.00013698,2]
[423485951,1780157438000,-500.0,0.00013698,2]
[423485950,1780157438000,-500.0,0.00013698,2]
[423485953,1780157438000,-500.0,0.00013698,2]
[423485955,1780157438000,-500.0,0.00013698,2]
[423485952,1780157438000,-500.0,0.00013698,2]
[423485954,1780157438000,-500.0,0.00013698,2]
[423485956,1780157438000,-500.0,0.00013698,2]
[423485901,1780157438000,-500.0,0.00013698,2]
[423485959,1780157438000,-200.0,0.00013699,2]
[423485958,1780157438000,-6104.33,0.00013699,2]
[423485960,1780157438000,-721.0,0.00013699,2]
[423485932,1780157438000,-500.0,0.00013698,2]
[423485933,1780157438000,-500.0,0.00013698,2]
[423485957,1780157438000,-500.0,0.00013698,2]
[423485931,1780157438000,-500.0,0.00013698,2]
[423485930,1780157438000,-500.0,0.00013698,2]
[423485903,1780157438000,-500.0,0.00013698,2]
[423485902,1780157438000,-500.0,0.00013698,2]
[423485904,1780157438000,-500.0,0.00013698,2]
[423485905,1780157438000,-500.0,0.00013698,2]
[423485907,1780157438000,-500.0,0.00013698,2]
[423485909,1780157438000,-500.0,0.00013698,2]
[423485908,1780157438000,-500.0,0.00013698,2]
[423485911,1780157438000,-295.37631974,0.00013698,2]
[423485914,1780157438000,-500.0,0.00013698,2]
[423485913,1780157438000,-500.0,0.00013698,2]
[423485910,1780157438000,-410.30161227,0.00013698,2]
[423485916,1780157438000,-500.0,0.00013698,2]
[423485906,1780157438000,-500.0,0.00013698,2]
[423485917,1780157438000,-500.0,0.00013698,2]
[423485915,1780157438000,-500.0,0.00013698,2]
[423485927,1780157438000,-500.0,0.00013698,2]
[423485923,1780157438000,-500.0,0.00013698,2]
[423485924,1780157438000,-500.0,0.00013698,2]
[423485925,1780157438000,-500.0,0.00013698,2]
[423485926,1780157438000,-500.0,0.00013698,2]
[423485928,1780157438000,-500.0,0.00013698,2]
[423485929,1780157438000,-500.0,0.00013698,2]
[423485922,1780157438000,-245.97684644,0.00013698,2]
[423485920,1780157438000,-500.0,0.00013698,2]
[423485918,1780157438000,-500.0,0.00013698,2]
[423485919,1780157438000,-500.0,0.00013698,2]
[423485921,1780157438000,-500.0,0.00013698,2]
[423485998,1780157439000,-500.0,0.00013699,2]
[423485995,1780157439000,-500.0,0.00013699,2]
[423485997,1780157439000,-500.0,0.00013699,2]
[423485996,1780157439000,-500.0,0.00013699,2]
[423485990,1780157439000,-500.0,0.00013699,2]
[423485991,1780157439000,-500.0,0.00013699,2]
[423485994,1780157439000,-500.0,0.00013699,2]
[423486000,1780157439000,-500.0,0.00013699,2]
[423485992,1780157439000,-500.0,0.00013699,2]
[423485989,1780157439000,-279.960539,0.00013699,2]
[423485993,1780157439000,-500.0,0.00013699,2]
[423486006,1780157439000,-500.0,0.00013699,2]
[423486002,1780157439000,-500.0,0.00013699,2]
[423486001,1780157439000,-500.0,0.00013699,2]
[423486003,1780157439000,-500.0,0.00013699,2]
[423486004,1780157439000,-500.0,0.00013699,2]
[423486005,1780157439000,-500.0,0.00013699,2]
[423486007,1780157439000,-500.0,0.00013699,2]
[423486008,1780157439000,-500.0,0.00013699,2]
[423486009,1780157439000,-500.0,0.00013699,2]
[423486012,1780157439000,-500.0,0.00013699,2]
[423485988,1780157439000,-151.0,0.00013699,2]
[423486010,1780157439000,-500.0,0.00013699,2]
[423485999,1780157439000,-500.0,0.00013699,2]
[423485985,1780157439000,-151.0,0.00013699,2]
[423485971,1780157439000,-151.0,0.00013699,2]
[423485986,1780157439000,-151.0,0.00013699,2]
[423486011,1780157439000,-500.0,0.00013699,2]
[423485962,1780157439000,-510.73,0.00013699,2]
[423485961,1780157439000,-166.66,0.00013699,2]
[423485963,1780157439000,-2500.0,0.00013699,2]
[423485964,1780157439000,-151.0,0.00013699,2]
[423485965,1780157439000,-151.0,0.00013699,2]
[423485966,1780157439000,-151.0,0.00013699,2]
[423485967,1780157439000,-151.0,0.00013699,2]
[423485969,1780157439000,-151.0,0.00013699,2]
[423485968,1780157439000,-151.0,0.00013699,2]
[423485970,1780157439000,-151.0,0.00013699,2]
[423485987,1780157439000,-151.0,0.00013699,2]
[423485973,1780157439000,-151.0,0.00013699,2]
[423485975,1780157439000,-151.0,0.00013699,2]
[423485977,1780157439000,-151.0,0.00013699,2]
[423485974,1780157439000,-151.0,0.00013699,2]
[423485978,1780157439000,-151.0,0.00013699,2]
[423485976,1780157439000,-151.0,0.00013699,2]
[423485980,1780157439000,-151.0,0.00013699,2]
[423485979,1780157439000,-151.0,0.00013699,2]
[423485981,1780157439000,-151.0,0.00013699,2]
[423485982,1780157439000,-151.0,0.00013699,2]
[423485983,1780157439000,-151.0,0.00013699,2]
[423485984,1780157439000,-151.0,0.00013699,2]
[423485972,1780157439000,-151.0,0.00013699,2]
[423486013,1780157439000,-500.0,0.00013699,2]
[423486027,1780157439000,-500.0,0.00013699,2]
[423486015,1780157439000,-500.0,0.00013699,2]
[423486045,1780157439000,-232.72583847,0.00014579,7]
[423486047,1780157439000,-2000.0,0.000148,2]
[423486048,1780157439000,-518.21,0.00014898,2]
[423486046,1780157439000,-33234.4339,0.000147,2]
[423486050,1780157439000,-500.0,0.00014898,2]
[423486049,1780157439000,-500.0,0.00014898,2]
[423486052,1780157439000,-500.0,0.00014898,2]
[423486053,1780157439000,-500.0,0.00014898,2]
[423486051,1780157439000,-500.0,0.00014898,2]
[423486055,1780157439000,-500.0,0.00014898,2]
[423486056,1780157439000,-500.0,0.00014899,2]
[423486043,1780157439000,-6905.8653448,0.00014504,2]
[423486058,1780157439000,-501.41833734,0.00014899,2]
[423486059,1780157439000,-500.0,0.00014899,2]
[423486060,1780157439000,-500.0,0.00014899,2]
[423486062,1780157439000,-500.0,0.00014899,2]
[423486064,1780157439000,-500.0,0.00014899,2]
[423486061,1780157439000,-500.0,0.00014899,2]
[423486065,1780157439000,-500.0,0.00014899,2]
[423486063,1780157439000,-500.0,0.00014899,2]
[423486067,1780157439000,-500.0,0.00014899,2]
[423486069,1780157439000,-500.0,0.00014899,2]
[423486068,1780157439000,-500.0,0.00014899,2]
[423486014,1780157439000,-460.01255174,0.00013699,2]
[423486057,1780157439000,-500.0,0.00014899,2]
[423486044,1780157439000,-1402.5161779,0.00014504,2]
[423486054,1780157439000,-3213.79,0.00014898,2]
[423486041,1780157439000,-170.1122376,0.00014504,2]
[423486042,1780157439000,-1312.8899781,0.00014504,2]
[423486018,1780157439000,-500.0,0.00013699,2]
[423486019,1780157439000,-500.0,0.00013699,2]
[423486020,1780157439000,-500.0,0.00013699,2]
[423486021,1780157439000,-500.0,0.00013699,2]
[423486022,1780157439000,-500.0,0.00013699,2]
[423486023,1780157439000,-500.0,0.00013699,2]
[423486025,1780157439000,-500.0,0.00013699,2]
[423486024,1780157439000,-500.0,0.00013699,2]
[423486066,1780157439000,-500.0,0.00014899,2]
[423486026,1780157439000,-500.0,0.00013699,2]
[423486029,1780157439000,-2000.0,0.00013769,2]
[423486016,1780157439000,-500.0,0.00013699,2]
[423486031,1780157439000,-420.0,0.00013895,2]
[423486028,1780157439000,-155.15055898,0.00013769,7]
[423486040,1780157439000,-8660.0275414,0.00014504,2]
[423486036,1780157439000,-250.0,0.00014,2]
[423486038,1780157439000,-166.66,0.00014247,2]
[423486037,1780157439000,-166.66,0.0001411,2]
[423486039,1780157439000,-166.66,0.00014384,2]
[423486034,1780157439000,-166.66,0.00013973,2]
[423486032,1780157439000,-5100.0,0.000139,5]
[423486033,1780157439000,-1419.1,0.00013961,2]
[423486030,1780157439000,-166.66,0.00013836,2]
[423486035,1780157439000,-46857.58197323,0.0001399,2]
[423486110,1780157440000,-500.0,0.00014899,2]
[423486108,1780157440000,-500.0,0.00014899,2]
[423486106,1780157440000,-500.0,0.00014899,2]
[423486101,1780157440000,-500.0,0.00014899,2]
[423486107,1780157440000,-500.0,0.00014899,2]
[423486105,1780157440000,-500.0,0.00014899,2]
[423486103,1780157440000,-500.0,0.00014899,2]
[423486104,1780157440000,-500.0,0.00014899,2]
[423486100,1780157440000,-500.0,0.00014899,2]
[423486109,1780157440000,-500.0,0.00014899,2]
[423486102,1780157440000,-500.0,0.00014899,2]
[423486112,1780157440000,-500.0,0.00014899,2]
[423486116,1780157440000,-500.0,0.00014899,2]
[423486115,1780157440000,-500.0,0.00014899,2]
[423486117,1780157440000,-500.0,0.00014899,2]
[423486114,1780157440000,-500.0,0.00014899,2]
[423486113,1780157440000,-500.0,0.00014899,2]
[423486119,1780157440000,-500.0,0.00014899,2]
[423486118,1780157440000,-500.0,0.00014899,2]
[423486120,1780157440000,-500.0,0.00014899,2]
[423486122,1780157440000,-500.0,0.00014899,2]
[423486121,1780157440000,-500.0,0.00014899,2]
[423486124,1780157440000,-500.0,0.00014899,2]
[423486099,1780157440000,-500.0,0.00014899,2]
[423486111,1780157440000,-500.0,0.00014899,2]
[423486095,1780157440000,-500.0,0.00014899,2]
[423486072,1780157440000,-500.0,0.00014899,2]
[423486098,1780157440000,-500.0,0.00014899,2]
[423486071,1780157440000,-500.0,0.00014899,2]
[423486127,1780157440000,-500.0,0.00014899,2]
[423486070,1780157440000,-500.0,0.00014899,2]
[423486073,1780157440000,-500.0,0.00014899,2]
[423486075,1780157440000,-500.0,0.00014899,2]
[423486076,1780157440000,-500.0,0.00014899,2]
[423486074,1780157440000,-500.0,0.00014899,2]
[423486078,1780157440000,-500.0,0.00014899,2]
[423486077,1780157440000,-500.0,0.00014899,2]
[423486079,1780157440000,-500.0,0.00014899,2]
[423486080,1780157440000,-500.0,0.00014899,2]
[423486083,1780157440000,-500.0,0.00014899,2]
[423486097,1780157440000,-500.0,0.00014899,2]
[423486081,1780157440000,-500.0,0.00014899,2]
[423486085,1780157440000,-500.0,0.00014899,2]
[423486087,1780157440000,-500.0,0.00014899,2]
[423486086,1780157440000,-500.0,0.00014899,2]
[423486088,1780157440000,-512.05018733,0.00014899,2]
[423486084,1780157440000,-500.0,0.00014899,2]
[423486090,1780157440000,-500.0,0.00014899,2]
[423486089,1780157440000,-500.0,0.00014899,2]
[423486092,1780157440000,-500.0,0.00014899,2]
[423486091,1780157440000,-500.0,0.00014899,2]
[423486094,1780157440000,-500.0,0.00014899,2]
[423486093,1780157440000,-500.0,0.00014899,2]
[423486096,1780157440000,-500.0,0.00014899,2]
[423486082,1780157440000,-500.0,0.00014899,2]
[423486125,1780157440000,-500.0,0.00014899,2]
[423486123,1780157440000,-500.0,0.00014899,2]
[423486128,1780157440000,-500.0,0.00014899,2]
[423486160,1780157440000,-1356.0,0.00016568,2]
[423486157,1780157440000,-163.0,0.00016445,2]
[423486161,1780157440000,-928.0,0.00016568,2]
[423486159,1780157440000,-150.0,0.00016568,2]
[423486162,1780157440000,-3550.0,0.00016568,2]
[423486158,1780157440000,-150.0,0.00016568,2]
[423486165,1780157440000,-1226.0,0.00016568,2]
[423486167,1780157440000,-187.71242717,0.00016568,10]
[423486169,1780157440000,-823.0,0.00016723,2]
[423486166,1780157440000,-3638.0,0.00016568,2]
[423486168,1780157440000,-6066.0,0.00016568,2]
[423486175,1780157440000,-193.2,0.00017252,2]
[423486171,1780157440000,-1590.0,0.00016935,2]
[423486173,1780157440000,-1590.0,0.00017085,2]
[423486174,1780157440000,-5019.86439087,0.00017154,2]
[423486172,1780157440000,-1419.1,0.00017063,2]
[423486176,1780157440000,-163.0,0.0001728,2]
[423486177,1780157440000,-1066.28,0.00017486,2]
[423486180,1780157440000,-9999.99,0.00017728,2]
[423486178,1780157440000,-301.49,0.00017625,2]
[423486179,1780157440000,-150.99,0.00017728,2]
[423486183,1780157440000,-350.0,0.00018,2]
[423486181,1780157440000,-468.2835812,0.00017759,2]
[423486182,1780157440000,-2318.0,0.0001794,2]
[423486126,1780157440000,-500.0,0.00014899,2]
[423486164,1780157440000,-525.0,0.00016568,2]
[423486163,1780157440000,-1272.0,0.00016568,2]
[423486170,1780157440000,-2000.0,0.00016829,2]
[423486152,1780157440000,-300.0,0.00016,2]
[423486130,1780157440000,-500.0,0.00014899,2]
[423486156,1780157440000,-1590.0,0.00016445,2]
[423486129,1780157440000,-500.0,0.00014899,2]
[423486132,1780157440000,-500.0,0.00014899,2]
[423486131,1780157440000,-500.0,0.00014899,2]
[423486133,1780157440000,-334.19838374,0.00014899,2]
[423486135,1780157440000,-151.0,0.000149,2]
[423486138,1780157440000,-1000.0,0.000149,2]
[423486134,1780157440000,-500.94201781,0.000149,2]
[423486137,1780157440000,-1000.0,0.000149,2]
[423486136,1780157440000,-1000.0,0.000149,2]
[423486141,1780157440000,-290.85141829,0.000149,2]
[423486142,1780157440000,-350.0,0.00014904,3]
[423486139,1780157440000,-1000.0,0.000149,2]
[423486153,1780157440000,-301.49,0.00016022,2]
[423486155,1780157440000,-16304.34935794,0.00016342,2]
[423486144,1780157440000,-176.77,0.00015068,2]
[423486154,1780157440000,-227.13037957,0.000161,2]
[423486150,1780157440000,-1590.0,0.00016,2]
[423486151,1780157440000,-227.13037957,0.00016,2]
[423486146,1780157440000,-587.0,0.00015243,2]
[423486149,1780157440000,-1590.0,0.00016,2]
[423486147,1780157440000,-2000.0,0.00015299,2]
[423486145,1780157440000,-167.51,0.00015178,2]
[423486143,1780157440000,-150.0,0.00015,2]
[423486140,1780157440000,-448.14641804,0.000149,2]
[423486148,1780157440000,-1419.1,0.00015512,2]
[423486222,1780157441000,-272.0,0.0002,2]
[423486226,1780157441000,-300.0,0.000201,10]
[423486225,1780157441000,-162.32,0.000201,7]
[423486224,1780157441000,-175.0,0.0002,2]
[423486220,1780157441000,-529.0,0.0002,2]
[423486216,1780157441000,-200.0,0.0002,10]
[423486221,1780157441000,-400.0,0.0002,2]
[423486218,1780157441000,-152.0,0.0002,2]
[423486217,1780157441000,-280.0,0.0002,2]
[423486215,1780157441000,-228.0,0.0002,2]
[423486223,1780157441000,-858.0,0.0002,2]
[423486219,1780157441000,-469.0,0.0002,2]
[423486228,1780157441000,-2314.0,0.00020166,2]
[423486240,1780157441000,-230.09519341,0.00020451,2]
[423486229,1780157441000,-151.0,0.00020203,2]
[423486230,1780157441000,-156.587,0.00020203,2]
[423486231,1780157441000,-199.47279156,0.00020203,2]
[423486234,1780157441000,-151.0,0.00020451,2]
[423486232,1780157441000,-2318.0,0.0002022,2]
[423486233,1780157441000,-151.0,0.00020451,2]
[423486235,1780157441000,-151.0,0.00020451,2]
[423486238,1780157441000,-221.88543241,0.00020451,2]
[423486239,1780157441000,-151.0,0.00020451,2]
[423486236,1780157441000,-1428.38747117,0.00020451,2]
[423486237,1780157441000,-151.0,0.00020451,2]
[423486214,1780157441000,-176.22248209,0.0002,2]
[423486227,1780157441000,-1613.0,0.00020125,2]
[423486211,1780157441000,-651.0,0.0002,2]
[423486185,1780157441000,-1152.0,0.00018345,2]
[423486212,1780157441000,-657.0,0.0002,2]
[423486242,1780157441000,-151.0,0.00020451,2]
[423486186,1780157441000,-2000.0,0.00018359,2]
[423486184,1780157441000,-1590.0,0.0001826,2]
[423486187,1780157441000,-2318.0,0.0001858,2]
[423486189,1780157441000,-12465.32,0.000188,2]
[423486191,1780157441000,-163.0,0.00018925,2]
[423486190,1780157441000,-6015.0,0.000188,2]
[423486188,1780157441000,-1419.1,0.00018614,2]
[423486192,1780157441000,-162.76,0.00019,2]
[423486194,1780157441000,-301.49,0.00019227,2]
[423486193,1780157441000,-16304.34935794,0.00019186,2]
[423486197,1780157441000,-150.0,0.00019568,2]
[423486213,1780157441000,-176.22248209,0.0002,2]
[423486195,1780157441000,-163.0,0.00019245,2]
[423486196,1780157441000,-170.11923,0.00019272,2]
[423486199,1780157441000,-1356.0,0.00019568,2]
[423486201,1780157441000,-3550.0,0.00019568,2]
[423486202,1780157441000,-906.077,0.00019568,2]
[423486205,1780157441000,-3638.0,0.00019568,2]
[423486203,1780157441000,-525.0,0.00019568,2]
[423486206,1780157441000,-6066.0,0.00019568,2]
[423486208,1780157441000,-688.0,0.0002,2]
[423486204,1780157441000,-1226.0,0.00019568,2]
[423486207,1780157441000,-1593.0,0.000199,2]
[423486209,1780157441000,-163.0,0.0002,2]
[423486210,1780157441000,-168.0,0.0002,2]
[423486198,1780157441000,-150.0,0.00019568,2]
[423486243,1780157441000,-247.43723804,0.00020451,2]
[423486200,1780157441000,-928.0,0.00019568,2]
[423486245,1780157441000,-256.59241585,0.00020451,2]
[423486276,1780157441000,-163.0,0.00021,2]
[423486278,1780157441000,-651.0,0.00021,2]
[423486277,1780157441000,-168.0,0.00021,2]
[423486282,1780157441000,-152.0,0.00021,2]
[423486280,1780157441000,-228.0,0.00021,2]
[423486281,1780157441000,-280.0,0.00021,2]
[423486279,1780157441000,-657.0,0.00021,2]
[423486284,1780157441000,-529.0,0.00021,2]
[423486301,1780157441000,-5000.0,0.00021918,2]
[423486283,1780157441000,-469.0,0.00021,2]
[423486287,1780157441000,-2318.0,0.00021269,2]
[423486288,1780157441000,-500.0,0.00021284,2]
[423486285,1780157441000,-272.0,0.00021,2]
[423486286,1780157441000,-175.0,0.00021,2]
[423486290,1780157441000,-2236.95670847,0.00021547,2]
[423486291,1780157441000,-12465.32,0.000216,2]
[423486289,1780157441000,-1536.04360648,0.00021547,2]
[423486294,1780157441000,-193.2,0.00021691,2]
[423486292,1780157441000,-6015.0,0.000216,2]
[423486295,1780157441000,-518.21,0.00021917,2]
[423486293,1780157441000,-500.0,0.00021616,2]
[423486296,1780157441000,-500.0,0.00021917,2]